[Event "*** Titled Tuesday Blitz"]
[Site "Chess.com"]
[Date "2020.05.26"]
[Round "2"]
[White "giantslayer83"]
[Black "MartinMatthiesen"]
[Result "1-0"]
[WhiteElo "2669"]
[BlackElo "2382"]
[TimeControl "180+1"]
[EndTime "10:17:54 PDT"]
[Termination "giantslayer83 won by resignation"]

1. d4 {[%clk 0:03:00.9]} 1... Nf6 {[%clk 0:02:59.3]} 2. Bg5 {[%clk 0:02:59.9]}
2... Ne4 {[%clk 0:02:55.1]} 3. Bf4 {[%clk 0:02:59.2]} 3... d5 {[%clk 0:02:55.2]}
4. e3 {[%clk 0:02:58.6]} 4... c5 {[%clk 0:02:52.6]} 5. Bd3 {[%clk 0:02:57.8]}
5... Nf6 {[%clk 0:02:51.7]} 6. c3 {[%clk 0:02:54.9]} 6... Nc6 {[%clk 0:02:50.4]}
7. h3 {[%clk 0:02:45.8]} 7... Qb6 {[%clk 0:02:30]} 8. Qc1 {[%clk 0:02:43.8]}
8... g6 {[%clk 0:02:27.1]} 9. Nf3 {[%clk 0:02:43]} 9... Bg7 {[%clk 0:02:25.9]}
10. O-O {[%clk 0:02:40.9]} 10... O-O {[%clk 0:02:25.2]} 11. Nbd2 {[%clk
0:02:40.9]} 11... Nd7 {[%clk 0:02:18]} 12. c4 {[%clk 0:01:56.5]} 12... cxd4
{[%clk 0:02:06.7]} 13. cxd5 {[%clk 0:01:55.1]} 13... Nb4 {[%clk 0:02:05.8]} 14.
Bc4 {[%clk 0:01:52.4]} 14... Nf6 {[%clk 0:01:07.2]} 15. e4 {[%clk 0:01:23.1]}
15... Bd7 {[%clk 0:00:37.7]} 16. a3 {[%clk 0:01:20.5]} 16... Na6 {[%clk
0:00:37.2]} 17. Be5 {[%clk 0:01:13.6]} 17... Nh5 {[%clk 0:00:36.2]} 18. Bxg7
{[%clk 0:01:11.9]} 18... Kxg7 {[%clk 0:00:34.3]} 19. b4 {[%clk 0:01:10.8]} 19...
Rac8 {[%clk 0:00:33.2]} 20. Qb2 {[%clk 0:01:10.6]} 20... Nf4 {[%clk 0:00:24.8]}
21. Rac1 {[%clk 0:01:06.4]} 21... Kg8 {[%clk 0:00:17.9]} 22. Qxd4 {[%clk
0:01:04]} 22... Qxd4 {[%clk 0:00:14.3]} 23. Nxd4 {[%clk 0:01:04.9]} 23... Nc7
{[%clk 0:00:13.9]} 24. Rfe1 {[%clk 0:00:53.7]} 24... e5 {[%clk 0:00:13]} 25.
N4f3 {[%clk 0:00:52.3]} 25... f6 {[%clk 0:00:12.2]} 26. h4 {[%clk 0:00:50.7]}
26... Kg7 {[%clk 0:00:12]} 27. g3 {[%clk 0:00:50.6]} 27... Nh5 {[%clk
0:00:11.2]} 28. Nf1 {[%clk 0:00:47]} 28... Ne8 {[%clk 0:00:11.2]} 29. Ne3 {[%clk
0:00:44.1]} 29... Nd6 {[%clk 0:00:11.1]} 30. Bd3 {[%clk 0:00:43.7]} 30... Rfd8
{[%clk 0:00:11.2]} 31. Kf1 {[%clk 0:00:37.4]} 31... Kf8 {[%clk 0:00:11.3]} 32.
Ke2 {[%clk 0:00:37.3]} 32... Ng7 {[%clk 0:00:11.6]} 33. Kd2 {[%clk 0:00:37.1]}
33... Nge8 {[%clk 0:00:11.8]} 34. Rxc8 {[%clk 0:00:36.3]} 34... Rxc8 {[%clk
0:00:11.8]} 35. Rc1 {[%clk 0:00:37.2]} 35... Rxc1 {[%clk 0:00:11.9]} 36. Kxc1
{[%clk 0:00:38.1]} 36... b6 {[%clk 0:00:11.8]} 37. Kd2 {[%clk 0:00:37.8]} 37...
Ke7 {[%clk 0:00:12]} 38. Ke2 {[%clk 0:00:30.7]} 38... Nc7 {[%clk 0:00:12.2]} 39.
Nd2 {[%clk 0:00:28.3]} 39... Nf7 {[%clk 0:00:12.2]} 40. Nec4 {[%clk 0:00:23.8]}
40... Nd6 {[%clk 0:00:11.8]} 41. Nxd6 {[%clk 0:00:22.9]} 41... Kxd6 {[%clk
0:00:12.7]} 42. Nc4+ {[%clk 0:00:23.6]} 42... Ke7 {[%clk 0:00:11.7]} 43. d6+
{[%clk 0:00:24.5]} 1-0

[Event "*** Titled Tuesday Blitz"]
[Site "Chess.com"]
[Date "2020.05.26"]
[Round "2"]
[White "SARGISMV"]
[Black "tan275"]
[Result "1-0"]
[WhiteElo "2428"]
[BlackElo "2199"]
[TimeControl "180+1"]
[EndTime "10:17:54 PDT"]
[Termination "SARGISMV won by checkmate"]

1. Nf3 {[%clk 0:03:00.9]} 1... d5 {[%clk 0:02:58.8]} 2. c4 {[%clk 0:03:01.8]}
2... e6 {[%clk 0:02:58.7]} 3. g3 {[%clk 0:03:01.1]} 3... Nf6 {[%clk 0:02:59]} 4.
Bg2 {[%clk 0:03:01.3]} 4... d4 {[%clk 0:02:58.8]} 5. O-O {[%clk 0:03:02.2]} 5...
c5 {[%clk 0:02:58.1]} 6. b4 {[%clk 0:02:57.7]} 6... cxb4 {[%clk 0:02:51.2]} 7.
a3 {[%clk 0:02:58.1]} 7... Nc6 {[%clk 0:02:50.8]} 8. Qa4 {[%clk 0:02:48.9]} 8...
Bd7 {[%clk 0:02:44.7]} 9. d3 {[%clk 0:02:43.6]} 9... a5 {[%clk 0:02:35.8]} 10.
axb4 {[%clk 0:02:28.9]} 10... Bxb4 {[%clk 0:02:34.6]} 11. Na3 {[%clk 0:02:23.3]}
11... O-O {[%clk 0:02:32.8]} 12. Nc2 {[%clk 0:02:21.7]} 12... Bc5 {[%clk
0:02:21.7]} 13. Qb3 {[%clk 0:02:12.9]} 13... b6 {[%clk 0:01:53.6]} 14. Bf4
{[%clk 0:02:05.8]} 14... Nh5 {[%clk 0:01:49.9]} 15. Bd2 {[%clk 0:01:43.1]} 15...
e5 {[%clk 0:01:46.2]} 16. Ng5 {[%clk 0:01:35.8]} 16... f5 {[%clk 0:01:37.2]} 17.
Bd5+ {[%clk 0:01:32]} 17... Kh8 {[%clk 0:01:35.7]} 18. Nf7+ {[%clk 0:01:31.6]}
18... Rxf7 {[%clk 0:01:35.1]} 19. Bxf7 {[%clk 0:01:32.5]} 19... Nf6 {[%clk
0:01:27.4]} 20. Bg5 {[%clk 0:01:22.5]} 20... f4 {[%clk 0:01:15.2]} 21. Bd5
{[%clk 0:01:18.6]} 21... Rc8 {[%clk 0:01:06.8]} 22. Bg2 {[%clk 0:00:55.3]} 22...
h6 {[%clk 0:01:05.8]} 23. Bxf6 {[%clk 0:00:50.1]} 23... Qxf6 {[%clk 0:01:06.7]}
24. Ne1 {[%clk 0:00:39.9]} 24... Bg4 {[%clk 0:00:47.2]} 25. Nf3 {[%clk 0:00:39]}
25... Qe6 {[%clk 0:00:36.6]} 26. Rae1 {[%clk 0:00:36.9]} 26... Bh3 {[%clk
0:00:35.4]} 27. Nd2 {[%clk 0:00:36.5]} 27... Bxg2 {[%clk 0:00:34.7]} 28. Kxg2
{[%clk 0:00:37.4]} 28... Ne7 {[%clk 0:00:27.7]} 29. Ne4 {[%clk 0:00:37.1]} 29...
Qc6 {[%clk 0:00:24.3]} 30. Qb5 {[%clk 0:00:35.5]} 30... Qb7 {[%clk 0:00:20.2]}
31. Kg1 {[%clk 0:00:34]} 31... Nf5 {[%clk 0:00:18.7]} 32. Rb1 {[%clk 0:00:33.6]}
32... Bb4 {[%clk 0:00:18.2]} 33. Qxe5 {[%clk 0:00:31.1]} 33... fxg3 {[%clk
0:00:11.8]} 34. Qxf5 {[%clk 0:00:26.9]} 34... gxh2+ {[%clk 0:00:12.2]} 35. Kh1
{[%clk 0:00:24.2]} 35... Rf8 {[%clk 0:00:12.5]} 36. Qg4 {[%clk 0:00:20.3]} 36...
Qc7 {[%clk 0:00:06.7]} 37. f4 {[%clk 0:00:20.3]} 37... Qc6 {[%clk 0:00:05.7]}
38. Rf3 {[%clk 0:00:20.3]} 38... Bc3 {[%clk 0:00:02.4]} 39. Rg3 {[%clk 0:00:19]}
39... Bd2 {[%clk 0:00:02]} 40. Qxg7# {[%clk 0:00:17.9]} 1-0

[Event "*** Titled Tuesday Blitz"]
[Site "Chess.com"]
[Date "2020.05.26"]
[Round "2"]
[White "Ar4uha"]
[Black "Gabix_94"]
[Result "0-1"]
[WhiteElo "2570"]
[BlackElo "2912"]
[TimeControl "180+1"]
[EndTime "10:17:55 PDT"]
[Termination "Gabix_94 won on time"]

1. e4 {[%clk 0:03:00.5]} 1... c5 {[%clk 0:02:58.7]} 2. Nf3 {[%clk 0:03:00.7]}
2... Nc6 {[%clk 0:02:58.2]} 3. Bb5 {[%clk 0:03:00.9]} 3... Na5 {[%clk
0:02:55.4]} 4. c3 {[%clk 0:03:00.3]} 4... a6 {[%clk 0:02:51.7]} 5. Ba4 {[%clk
0:02:59.4]} 5... Nf6 {[%clk 0:02:48.5]} 6. e5 {[%clk 0:02:58.4]} 6... Nd5 {[%clk
0:02:48.3]} 7. d4 {[%clk 0:02:57.8]} 7... b5 {[%clk 0:02:44.7]} 8. dxc5 {[%clk
0:02:51]} 8... bxa4 {[%clk 0:02:35.6]} 9. Qxd5 {[%clk 0:02:50.4]} 9... Bb7
{[%clk 0:02:36.1]} 10. Qd4 {[%clk 0:02:40.1]} 10... e6 {[%clk 0:02:30.3]} 11.
Be3 {[%clk 0:02:39.9]} 11... Rc8 {[%clk 0:02:26.8]} 12. Qxa4 {[%clk 0:02:37.5]}
12... Bxf3 {[%clk 0:02:22.4]} 13. gxf3 {[%clk 0:02:37.3]} 13... Bxc5 {[%clk
0:02:21.3]} 14. Nd2 {[%clk 0:02:29.9]} 14... O-O {[%clk 0:02:17.1]} 15. Rg1
{[%clk 0:02:29.7]} 15... Bxe3 {[%clk 0:02:13.3]} 16. fxe3 {[%clk 0:02:29.7]}
16... Qb6 {[%clk 0:02:09.1]} 17. Ke2 {[%clk 0:02:27.6]} 17... Nc6 {[%clk
0:02:02.6]} 18. Nc4 {[%clk 0:02:21.1]} 18... Qb8 {[%clk 0:01:58.5]} 19. f4
{[%clk 0:02:19]} 19... Ne7 {[%clk 0:01:53.1]} 20. Rab1 {[%clk 0:02:13.7]} 20...
Nd5 {[%clk 0:01:49.7]} 21. Nd6 {[%clk 0:02:01.5]} 21... Rxc3 {[%clk 0:01:35.5]}
22. Rg3 {[%clk 0:01:39.4]} 22... Rc5 {[%clk 0:01:26.2]} 23. Ne4 {[%clk
0:01:38.9]} 23... Rc6 {[%clk 0:01:20.4]} 24. Qd1 {[%clk 0:01:33.2]} 24... Rfc8
{[%clk 0:01:15.3]} 25. Kf3 {[%clk 0:01:33.4]} 25... Qa7 {[%clk 0:01:12.6]} 26.
Qg1 {[%clk 0:01:31.7]} 26... g6 {[%clk 0:01:10.5]} 27. h4 {[%clk 0:01:26.6]}
27... Rc2 {[%clk 0:01:06.5]} 28. h5 {[%clk 0:01:25.9]} 28... Ne7 {[%clk
0:01:00.3]} 29. hxg6 {[%clk 0:01:23.2]} 29... fxg6 {[%clk 0:00:55.1]} 30. Nf6+
{[%clk 0:01:06]} 30... Kg7 {[%clk 0:00:54.7]} 31. Qh1 {[%clk 0:01:05.3]} 31...
h6 {[%clk 0:00:50.7]} 32. Rh3 {[%clk 0:00:34.8]} 32... Qb7+ {[%clk 0:00:46.6]}
33. e4 {[%clk 0:00:33.3]} 33... Qb5 {[%clk 0:00:41.9]} 34. Kg4 {[%clk
0:00:13.3]} 34... h5+ {[%clk 0:00:38.5]} 35. Kg5 {[%clk 0:00:13.1]} 35... Rf8
{[%clk 0:00:31.2]} 36. Rxh5 {[%clk 0:00:05.6]} 36... gxh5 {[%clk 0:00:27.4]} 37.
Qxh5 {[%clk 0:00:04.6]} 37... Rxf6 {[%clk 0:00:26.8]} 0-1

[Event "*** Titled Tuesday Blitz"]
[Site "Chess.com"]
[Date "2020.05.26"]
[Round "2"]
[White "Konek-Gorbunok"]
[Black "Unknown_IM"]
[Result "0-1"]
[WhiteElo "2213"]
[BlackElo "2539"]
[TimeControl "180+1"]
[EndTime "10:17:55 PDT"]
[Termination "Unknown_IM won on time"]

1. d4 {[%clk 0:03:00.9]} 1... d5 {[%clk 0:02:58.7]} 2. Nf3 {[%clk 0:03:01.8]}
2... Nf6 {[%clk 0:02:57.6]} 3. g3 {[%clk 0:03:01.7]} 3... Bf5 {[%clk 0:02:54.4]}
4. Bg2 {[%clk 0:03:01.6]} 4... c6 {[%clk 0:02:52.2]} 5. O-O {[%clk 0:03:01.8]}
5... e6 {[%clk 0:02:51.8]} 6. c4 {[%clk 0:03:01.7]} 6... h6 {[%clk 0:02:50.4]}
7. Nc3 {[%clk 0:03:02]} 7... Nbd7 {[%clk 0:02:49.7]} 8. Nd2 {[%clk 0:03:02.5]}
8... Be7 {[%clk 0:02:48.4]} 9. e4 {[%clk 0:03:02.4]} 9... dxe4 {[%clk
0:02:49.3]} 10. Ndxe4 {[%clk 0:03:02.6]} 10... O-O {[%clk 0:02:46]} 11. Be3
{[%clk 0:03:02.4]} 11... Nxe4 {[%clk 0:02:38.8]} 12. Nxe4 {[%clk 0:03:03.3]}
12... Nf6 {[%clk 0:02:37.3]} 13. Nc3 {[%clk 0:03:03.1]} 13... Qa5 {[%clk
0:02:35.3]} 14. Qb3 {[%clk 0:03:02]} 14... Qb6 {[%clk 0:02:20.3]} 15. Qxb6
{[%clk 0:02:55.6]} 15... axb6 {[%clk 0:02:19.7]} 16. Rfd1 {[%clk 0:02:51.4]}
16... Rfd8 {[%clk 0:02:15.3]} 17. h3 {[%clk 0:02:50.1]} 17... Bc2 {[%clk
0:02:01.9]} 18. Rdc1 {[%clk 0:02:11.3]} 18... Bd3 {[%clk 0:01:49.4]} 19. d5
{[%clk 0:02:01.8]} 19... Bxc4 {[%clk 0:01:13]} 20. dxc6 {[%clk 0:01:13.9]} 20...
bxc6 {[%clk 0:01:11.8]} 21. Bxc6 {[%clk 0:01:03.4]} 21... Rac8 {[%clk
0:01:09.2]} 22. Bb7 {[%clk 0:00:51.8]} 22... Rb8 {[%clk 0:01:08.4]} 23. Bg2
{[%clk 0:00:32.5]} 23... b5 {[%clk 0:01:03.3]} 24. Bf4 {[%clk 0:00:20.2]} 24...
Bd6 {[%clk 0:00:56.6]} 25. Bxd6 {[%clk 0:00:19.8]} 25... Rxd6 {[%clk 0:00:57.5]}
26. b3 {[%clk 0:00:19.2]} 26... Bd3 {[%clk 0:00:57.1]} 27. Rd1 {[%clk 0:00:17]}
27... Rbd8 {[%clk 0:00:54.6]} 28. Rd2 {[%clk 0:00:13.1]} 28... b4 {[%clk
0:00:52.3]} 29. Na4 {[%clk 0:00:12.2]} 29... Bb5 {[%clk 0:00:47.7]} 30. Rxd6
{[%clk 0:00:10.8]} 30... Rxd6 {[%clk 0:00:48.6]} 31. Nc5 {[%clk 0:00:10]} 31...
Rd2 {[%clk 0:00:48.5]} 32. a4 {[%clk 0:00:05.2]} 32... bxa3 {[%clk 0:00:48.2]}
33. Rxa3 {[%clk 0:00:04.5]} 33... Nd5 {[%clk 0:00:48.2]} 34. Ne4 {[%clk
0:00:02.4]} 34... Rd1+ {[%clk 0:00:46.6]} 35. Kh2 {[%clk 0:00:02.1]} 35... Rb1
{[%clk 0:00:46.3]} 36. Nd6 {[%clk 0:00:01.2]} 36... Bd3 {[%clk 0:00:42.3]} 37.
Ra8+ {[%clk 0:00:01.3]} 37... Kh7 {[%clk 0:00:42.3]} 38. Nxf7 {[%clk 0:00:01.8]}
38... Rxb3 {[%clk 0:00:36.8]} 39. Ne5 {[%clk 0:00:02.7]} 39... Nf6 {[%clk
0:00:24.8]} 40. Ra7 {[%clk 0:00:03.6]} 40... Be4 {[%clk 0:00:22.2]} 0-1

[Event "*** Titled Tuesday Blitz"]
[Site "Chess.com"]
[Date "2020.05.26"]
[Round "2"]
[White "eightbyeightchess"]
[Black "Antelacus"]
[Result "1-0"]
[WhiteElo "2462"]
[BlackElo "2255"]
[TimeControl "180+1"]
[EndTime "10:17:55 PDT"]
[Termination "eightbyeightchess won by resignation"]

1. e4 {[%clk 0:03:00.9]} 1... c5 {[%clk 0:02:59.3]} 2. Nf3 {[%clk 0:03:00.8]}
2... d6 {[%clk 0:02:59.5]} 3. d4 {[%clk 0:03:01.4]} 3... cxd4 {[%clk 0:02:59.8]}
4. Qxd4 {[%clk 0:03:02.1]} 4... Nc6 {[%clk 0:02:58.8]} 5. Bb5 {[%clk 0:03:01.7]}
5... Bd7 {[%clk 0:02:59.2]} 6. Bxc6 {[%clk 0:03:01.4]} 6... Bxc6 {[%clk
0:02:58.4]} 7. Nc3 {[%clk 0:03:01.5]} 7... Nf6 {[%clk 0:02:57.8]} 8. Bg5 {[%clk
0:03:00.9]} 8... e6 {[%clk 0:02:54.9]} 9. O-O-O {[%clk 0:03:00.3]} 9... Be7
{[%clk 0:02:53.2]} 10. Qd3 {[%clk 0:03:00.5]} 10... Qc7 {[%clk 0:02:51.3]} 11.
Nd4 {[%clk 0:03:00.4]} 11... Rc8 {[%clk 0:02:39.8]} 12. f4 {[%clk 0:02:58.7]}
12... a6 {[%clk 0:02:37.8]} 13. f5 {[%clk 0:02:54.1]} 13... e5 {[%clk
0:02:36.6]} 14. Bxf6 {[%clk 0:02:53]} 14... gxf6 {[%clk 0:02:35.9]} 15. Nxc6
{[%clk 0:02:51.4]} 15... bxc6 {[%clk 0:02:35.2]} 16. g4 {[%clk 0:02:37.8]} 16...
a5 {[%clk 0:02:32.3]} 17. Kb1 {[%clk 0:02:29.3]} 17... Qb6 {[%clk 0:02:30.2]}
18. Na4 {[%clk 0:02:12.7]} 18... Qb4 {[%clk 0:02:25.2]} 19. Qa6 {[%clk
0:02:11.8]} 19... O-O {[%clk 0:02:17.9]} 20. b3 {[%clk 0:01:56]} 20... Qxe4
{[%clk 0:02:14.5]} 21. Rhe1 {[%clk 0:01:38.3]} 21... Qb4 {[%clk 0:02:12.4]} 22.
Nb6 {[%clk 0:01:33.4]} 22... Rc7 {[%clk 0:02:06.6]} 23. Nc4 {[%clk 0:01:10.7]}
23... d5 {[%clk 0:02:04.3]} 24. Nxa5 {[%clk 0:01:06.3]} 24... Qa3 {[%clk
0:01:51.6]} 25. Qb6 {[%clk 0:00:54.7]} 25... Rfc8 {[%clk 0:01:41.1]} 26. c4
{[%clk 0:00:35.9]} 26... Bb4 {[%clk 0:01:36.1]} 27. Nb7 {[%clk 0:00:30]} 27...
Bxe1 {[%clk 0:01:32.3]} 28. Rxe1 {[%clk 0:00:30.1]} 28... dxc4 {[%clk
0:01:30.2]} 29. Nc5 {[%clk 0:00:21.9]} 29... c3 {[%clk 0:01:26.1]} 30. Re2
{[%clk 0:00:20.7]} 30... Qa7 {[%clk 0:01:23]} 31. Qxa7 {[%clk 0:00:20]} 31...
Rxa7 {[%clk 0:01:22]} 32. Rc2 {[%clk 0:00:20.9]} 32... Rd8 {[%clk 0:01:17.9]}
33. Rxc3 {[%clk 0:00:20.3]} 33... Rd2 {[%clk 0:01:16]} 34. a4 {[%clk 0:00:19.9]}
34... Rxh2 {[%clk 0:01:13.9]} 35. Ne4 {[%clk 0:00:20.1]} 35... Kg7 {[%clk
0:01:12.6]} 36. Rxc6 {[%clk 0:00:19.6]} 36... Rb7 {[%clk 0:01:09.5]} 37. Nc5
{[%clk 0:00:18.8]} 37... Rb4 {[%clk 0:01:08.3]} 38. g5 {[%clk 0:00:14.2]} 38...
fxg5 {[%clk 0:01:06.4]} 39. Rc7 {[%clk 0:00:10.2]} 39... Kf6 {[%clk 0:01:03.7]}
40. a5 {[%clk 0:00:09.2]} 40... g4 {[%clk 0:00:56.4]} 41. a6 {[%clk 0:00:08.9]}
41... Rb8 {[%clk 0:00:53.1]} 42. Nd7+ {[%clk 0:00:08.3]} 42... Kxf5 {[%clk
0:00:52.2]} 43. Nxb8 {[%clk 0:00:09.2]} 43... g3 {[%clk 0:00:50.4]} 44. Rxf7+
{[%clk 0:00:06.7]} 44... Ke6 {[%clk 0:00:49]} 45. Rg7 {[%clk 0:00:06.4]} 45...
g2 {[%clk 0:00:48.8]} 46. a7 {[%clk 0:00:06.1]} 46... Rh1+ {[%clk 0:00:46.1]}
47. Kb2 {[%clk 0:00:06]} 47... g1=Q {[%clk 0:00:45.9]} 48. Rxg1 {[%clk
0:00:06.4]} 48... Rxg1 {[%clk 0:00:46.3]} 49. a8=Q {[%clk 0:00:07.3]} 49... Rg2+
{[%clk 0:00:44]} 50. Qxg2 {[%clk 0:00:07.4]} 50... h5 {[%clk 0:00:43.5]} 51.
Qh3+ {[%clk 0:00:08.3]} 51... Kf6 {[%clk 0:00:43.5]} 52. Qh4+ {[%clk 0:00:09.2]}
52... Kf5 {[%clk 0:00:42.9]} 53. Nc6 {[%clk 0:00:10.1]} 53... e4 {[%clk
0:00:42.2]} 54. Qxh5+ {[%clk 0:00:10.4]} 54... Kf4 {[%clk 0:00:42.6]} 55. Qe2
{[%clk 0:00:11.2]} 55... e3 {[%clk 0:00:42.4]} 56. Nb4 {[%clk 0:00:10.9]} 56...
Ke4 {[%clk 0:00:42.6]} 57. Nc2 {[%clk 0:00:11.8]} 57... Kf4 {[%clk 0:00:42.5]}
58. Qxe3+ {[%clk 0:00:12.1]} 58... Kf5 {[%clk 0:00:42.7]} 59. Nd4+ {[%clk
0:00:11.9]} 1-0

[Event "*** Titled Tuesday Blitz"]
[Site "Chess.com"]
[Date "2020.05.26"]
[Round "2"]
[White "krasavetc"]
[Black "MYMChessAcademy"]
[Result "1-0"]
[WhiteElo "2252"]
[BlackElo "2419"]
[TimeControl "180+1"]
[EndTime "10:17:55 PDT"]
[Termination "krasavetc won on time"]

1. e4 {[%clk 0:03:00.9]} 1... c5 {[%clk 0:02:58.8]} 2. c3 {[%clk 0:03:00.4]}
2... e6 {[%clk 0:02:58.5]} 3. e5 {[%clk 0:03:00.4]} 3... d5 {[%clk 0:02:59.4]}
4. exd6 {[%clk 0:03:00.1]} 4... Bxd6 {[%clk 0:02:58.4]} 5. Nf3 {[%clk 0:03:01]}
5... Nf6 {[%clk 0:02:58]} 6. Be2 {[%clk 0:03:00.3]} 6... O-O {[%clk 0:02:58.5]}
7. O-O {[%clk 0:02:59.7]} 7... Nc6 {[%clk 0:02:58.6]} 8. d4 {[%clk 0:02:59.6]}
8... b6 {[%clk 0:02:56.3]} 9. dxc5 {[%clk 0:02:58.2]} 9... Bxc5 {[%clk
0:02:57.2]} 10. Qxd8 {[%clk 0:02:57.5]} 10... Rxd8 {[%clk 0:02:58.1]} 11. Bg5
{[%clk 0:02:57.7]} 11... Bb7 {[%clk 0:02:57.4]} 12. Nbd2 {[%clk 0:02:53.6]}
12... Be7 {[%clk 0:02:48.6]} 13. Nc4 {[%clk 0:02:51.8]} 13... h6 {[%clk
0:02:47.7]} 14. Bh4 {[%clk 0:01:53.8]} 14... g5 {[%clk 0:02:45.1]} 15. Bg3
{[%clk 0:01:53.4]} 15... Ne4 {[%clk 0:02:45.1]} 16. Nfe5 {[%clk 0:01:49.8]}
16... Nxe5 {[%clk 0:02:27]} 17. Nxe5 {[%clk 0:01:48.1]} 17... Rd2 {[%clk
0:02:14.6]} 18. Bh5 {[%clk 0:01:35.9]} 18... Rf8 {[%clk 0:01:54.7]} 19. Nc4
{[%clk 0:01:31.3]} 19... Nxg3 {[%clk 0:01:40.8]} 20. hxg3 {[%clk 0:01:26.2]}
20... Rd7 {[%clk 0:01:33.9]} 21. Rfd1 {[%clk 0:01:24.4]} 21... Rdd8 {[%clk
0:01:13.6]} 22. Ne5 {[%clk 0:01:22.4]} 22... Kg7 {[%clk 0:00:56.8]} 23. Bf3
{[%clk 0:01:18.8]} 23... Bxf3 {[%clk 0:00:51.8]} 24. gxf3 {[%clk 0:01:17.8]}
24... Bf6 {[%clk 0:00:32.6]} 25. Nc6 {[%clk 0:01:16.6]} 25... Ra8 {[%clk
0:00:23.2]} 26. Rd7 {[%clk 0:01:15]} 26... a5 {[%clk 0:00:23.4]} 27. Rb7 {[%clk
0:01:13.8]} 27... Ra6 {[%clk 0:00:20.5]} 28. Rd1 {[%clk 0:01:12.7]} 28... b5
{[%clk 0:00:19.7]} 29. Nd4 {[%clk 0:01:09.8]} 29... Bxd4 {[%clk 0:00:15.1]} 30.
Rxd4 {[%clk 0:01:09]} 30... b4 {[%clk 0:00:12.5]} 31. cxb4 {[%clk 0:01:02.7]}
31... axb4 {[%clk 0:00:13.4]} 32. Rdxb4 {[%clk 0:00:58.7]} 32... Rxa2 {[%clk
0:00:13.6]} 33. Rd7 {[%clk 0:00:58.7]} 33... Ra5 {[%clk 0:00:10.3]} 34. Kg2
{[%clk 0:00:58.2]} 34... Rc8 {[%clk 0:00:09.5]} 35. Rbb7 {[%clk 0:00:57.6]}
35... Rf5 {[%clk 0:00:10]} 36. Rd2 {[%clk 0:00:55.9]} 36... Rcc5 {[%clk
0:00:09.4]} 37. Rb3 {[%clk 0:00:55.2]} 37... h5 {[%clk 0:00:09.2]} 38. Re3
{[%clk 0:00:54.3]} 38... Kg6 {[%clk 0:00:09]} 39. b4 {[%clk 0:00:53]} 39... Rb5
{[%clk 0:00:07.8]} 40. Rd4 {[%clk 0:00:52.2]} 40... Rfd5 {[%clk 0:00:06.7]} 41.
Rc4 {[%clk 0:00:50.2]} 41... Rd2 {[%clk 0:00:06.6]} 42. Ree4 {[%clk 0:00:46.4]}
42... Rb2 {[%clk 0:00:06.7]} 43. g4 {[%clk 0:00:45.8]} 43... h4 {[%clk 0:00:05]}
44. f4 {[%clk 0:00:45]} 44... f6 {[%clk 0:00:04.7]} 45. Rxe6 {[%clk 0:00:42.6]}
45... gxf4 {[%clk 0:00:05.1]} 46. Rxf4 {[%clk 0:00:41.9]} 46... R2xb4 {[%clk
0:00:05.3]} 47. Rexf6+ {[%clk 0:00:42.1]} 47... Kg5 {[%clk 0:00:05.5]} 48. R6f5+
{[%clk 0:00:38.4]} 48... Rxf5 {[%clk 0:00:05.3]} 49. Rxb4 {[%clk 0:00:38.9]}
49... Rf4 {[%clk 0:00:05.1]} 50. Rxf4 {[%clk 0:00:35.4]} 50... Kxf4 {[%clk
0:00:06]} 51. f3 {[%clk 0:00:35.8]} 1-0

[Event "*** Titled Tuesday Blitz"]
[Site "Chess.com"]
[Date "2020.05.26"]
[Round "2"]
[White "AndrewMaco"]
[Black "TenisMaster"]
[Result "1/2-1/2"]
[WhiteElo "2542"]
[BlackElo "2825"]
[TimeControl "180+1"]
[EndTime "10:17:58 PDT"]
[Termination "Game drawn by repetition"]

1. e4 {[%clk 0:03:00.9]} 1... e5 {[%clk 0:02:55.9]} 2. Nf3 {[%clk 0:03:01.1]}
2... Nc6 {[%clk 0:02:56.2]} 3. Bb5 {[%clk 0:03:01.7]} 3... Nf6 {[%clk
0:02:55.4]} 4. O-O {[%clk 0:03:01.8]} 4... Nxe4 {[%clk 0:02:55.3]} 5. Re1 {[%clk
0:03:02.3]} 5... Nd6 {[%clk 0:02:55.4]} 6. Nxe5 {[%clk 0:03:03]} 6... Be7 {[%clk
0:02:55.5]} 7. Bf1 {[%clk 0:03:03.1]} 7... Nxe5 {[%clk 0:02:55.6]} 8. Rxe5
{[%clk 0:03:04]} 8... O-O {[%clk 0:02:56]} 9. d4 {[%clk 0:03:04.3]} 9... Ne8
{[%clk 0:02:51.1]} 10. c4 {[%clk 0:03:01.7]} 10... d6 {[%clk 0:02:41]} 11. Re1
{[%clk 0:03:01.5]} 11... Bg5 {[%clk 0:02:38]} 12. Nc3 {[%clk 0:02:59.6]} 12...
Bxc1 {[%clk 0:02:35.7]} 13. Rxc1 {[%clk 0:03:00.5]} 13... Nf6 {[%clk 0:02:34.3]}
14. d5 {[%clk 0:02:56.9]} 14... Bf5 {[%clk 0:02:33.6]} 15. Qd4 {[%clk
0:02:52.8]} 15... Qd7 {[%clk 0:02:32.2]} 16. h3 {[%clk 0:02:50.2]} 16... h5
{[%clk 0:02:22.6]} 17. Re3 {[%clk 0:02:49.6]} 17... a6 {[%clk 0:02:20.6]} 18.
Rce1 {[%clk 0:02:42.8]} 18... Rfe8 {[%clk 0:02:20.4]} 19. Qf4 {[%clk 0:02:23.1]}
19... Bg6 {[%clk 0:02:16.4]} 20. Qd4 {[%clk 0:01:41.2]} 20... Rxe3 {[%clk
0:02:14.2]} 21. Rxe3 {[%clk 0:01:42.1]} 21... Re8 {[%clk 0:02:14.3]} 22. Be2
{[%clk 0:01:40.3]} 22... Rxe3 {[%clk 0:02:09.2]} 23. Qxe3 {[%clk 0:01:41.2]}
23... Kf8 {[%clk 0:02:09.2]} 24. Qa7 {[%clk 0:01:36.3]} 24... Qc8 {[%clk
0:02:09.2]} 25. b4 {[%clk 0:01:32.1]} 25... Nd7 {[%clk 0:01:49.9]} 26. Qd4
{[%clk 0:01:12.2]} 26... Qe8 {[%clk 0:01:48.5]} 27. f4 {[%clk 0:01:10.3]} 27...
Qe7 {[%clk 0:01:23.5]} 28. a3 {[%clk 0:01:06.6]} 28... Qf6 {[%clk 0:01:15.5]}
29. Qxf6 {[%clk 0:01:05.1]} 29... Nxf6 {[%clk 0:01:16.4]} 30. g4 {[%clk
0:01:02.5]} 30... hxg4 {[%clk 0:01:10]} 31. hxg4 {[%clk 0:01:03.4]} 31... Ne4
{[%clk 0:01:08.4]} 32. Nxe4 {[%clk 0:01:01.6]} 32... Bxe4 {[%clk 0:01:09.3]} 33.
Kf2 {[%clk 0:01:02.2]} 33... Ke7 {[%clk 0:01:05.1]} 34. Ke3 {[%clk 0:01:02.5]}
34... Bc2 {[%clk 0:01:04.5]} 35. Kd4 {[%clk 0:01:01.8]} 35... f6 {[%clk
0:01:03]} 36. c5 {[%clk 0:00:58.5]} 36... Ba4 {[%clk 0:01:00.4]} 37. Bd3 {[%clk
0:00:57.7]} 37... Kd8 {[%clk 0:00:57.8]} 38. Bf5 {[%clk 0:00:54.8]} 38... Bd1
{[%clk 0:00:54.6]} 39. Be6 {[%clk 0:00:54.5]} 39... Ba4 {[%clk 0:00:44.9]} 40.
g5 {[%clk 0:00:48]} 40... fxg5 {[%clk 0:00:44.2]} 41. fxg5 {[%clk 0:00:48.9]}
41... Bd1 {[%clk 0:00:43.2]} 42. c6 {[%clk 0:00:38.5]} 42... b6 {[%clk
0:00:22.1]} 43. Bf5 {[%clk 0:00:32.7]} 43... Be2 {[%clk 0:00:22]} 44. Be6 {[%clk
0:00:29.2]} 44... Bf1 {[%clk 0:00:20.3]} 45. Bf5 {[%clk 0:00:29.1]} 45... Ke7
{[%clk 0:00:20]} 46. Be6 {[%clk 0:00:26.5]} 46... Kd8 {[%clk 0:00:19.1]} 47. Ke3
{[%clk 0:00:25.1]} 47... Ke7 {[%clk 0:00:19.3]} 48. Kf4 {[%clk 0:00:24.5]} 48...
Be2 {[%clk 0:00:18]} 49. Ke3 {[%clk 0:00:21.9]} 49... Bf1 {[%clk 0:00:17.9]} 50.
Kd4 {[%clk 0:00:19.4]} 50... Bb5 {[%clk 0:00:17.7]} 51. Bf5 {[%clk 0:00:18.2]}
51... Bf1 {[%clk 0:00:17.1]} 52. Be6 {[%clk 0:00:17.4]} 1/2-1/2